Cogmind - Beta 14 @@@ ROGUE MODE // 2024.10.26 @ 10:43:52 Player: toydarian Result: Destroyed by S-10 Pest with Light Assault Rifle Performance ------------- Evolutions (0) 0 Regions Visited (2) 400 Robots Destroyed (25) 125 Value Destroyed (731) 731 Prototype IDs (0) 0 Alien Tech Used (0) 0 Bonus (0) 0 TOTAL SCORE: 1256 Bonus ------- None Cogmind --------- Core Integrity 0/250 Matter 315/400 Energy 237/265 System Corruption 0% Temperature Cool (0) Movement Treading (240) Ox1 Location -10/Mines Parts ------- > --- POWER (1) -------- Improved Ion Engine > --- PROPULSION (2) --- Light Treads > --- UTILITY (2) ------ Large Storage Unit Medium Matter Pod > --- WEAPON (2) ------- Particle Gun Grenade Launcher > --- INVENTORY (15) --- Improved Ion Engine Improved Ion Engine Aluminum Leg Aluminum Leg Aluminum Leg Aluminum Leg Sensor Array Hacking Suite EM Pulse Gun Peak State ------------ > --- POWER ------------ Improved Ion Engine > --- PROPULSION ------- Light Treads Light Treads > --- UTILITY ---------- Large Storage Unit Medium Matter Pod > --- WEAPON ----------- EM Pulse Gun Particle Gun > --- INVENTORY -------- Improved Ion Engine Improved Ion Engine Aluminum Leg Aluminum Leg Aluminum Leg Aluminum Leg Sensor Array Hacking Suite Grenade Launcher [Rating: 10] Favorites ----------- Power Improved Ion Engine Engine Improved Ion Engine Propulsion Light Treads Treads Light Treads Utility Large Storage Unit Device Sensor Array Storage Large Storage Unit Protection Light Armor Plating Weapon Assault Rifle Energy Gun Particle Gun Ballistic Gun Assault Rifle Launcher Grenade Launcher Build | -11 -10 -10 ------- Run | Yrd Mat Min Slots Evolved . | . . . Power . | . . . Propulsion . | . . . Utility . | . . . Weapon . | . . . Parts Attached 25 | 6 8 11 Power 4 | 1 2 1 Engine 4 | 1 2 1 Core . | . . . Reactor . | . . . Propulsion 3 | 2 . 1 Treads 3 | 2 . 1 Leg . | . . . Wheel . | . . . Hover . | . . . Flight . | . . . Utility 7 | 1 5 1 Device 2 | . 2 . Storage 4 | 1 2 1 Processor . | . . . Hackware . | . . . Protection 1 | . 1 . Artifact . | . . . Weapon 11 | 2 1 8 Energy Gun 2 | . . 2 Energy Cannon . | . . . Ballistic Gun 6 | 2 1 3 Ballistic Cannon . | . . . Launcher 3 | . . 3 Special Weapon . | . . . Impact Weapon . | . . . Slashing Weapon . | . . . Piercing Weapon . | . . . Special Melee Weapon . | . . . Unidentified Prototypes . | . . . Parts Lost 7 | . . 7 Power 1 | . . 1 Propulsion 2 | . . 2 Utility 1 | . . 1 Weapon 3 | . . 3 Highest Loss Streak 4 | . . 4 To Critical Strikes . | . . . Average Slot Usage (%) 99 | . 99 98 Engine 13 | . 14 13 Treads 27 | . 28 27 Device 7 | . 10 . Storage 16 | . 14 21 Protection 4 | . 3 7 Energy Gun 3 | . . 12 Ballistic Gun 23 | . 28 13 Peak Build Rating 10 | 6 9 10 Average Rating 8 | 5 8 9 On Entrance 5 | . 6 9 Naked Turns . | . . . Heaviest Build 92 | 14 92 35 Greatest Support 40 | 40 40 40 Greatest Overweight (x) 2 | . 2 1 Average Overweight (x) . | . . . Largest Inventory Capacity 25 | 8 25 15 Average Capacity 12 | 7 12 15 Most Carried 13 | 6 13 13 Average Carried 9 | 5 8 10 Final Capacity 15 | 8 15 15 Final Carried 13 | 6 13 9 Class Distribution -------------------- 100% | Mutant Dominant Class ---------------- Mutant | -10/Materials Mutant | -10/Mines Resources | -11 -10 -10 ----------- Run | Yrd Mat Min Matter Collected 1035 | 278 502 255 Remotely . | . . . Salvage Created 801 | 63 502 236 Parts 42 | 2 26 14 Haulers Intercepted 1 | . 1 . Recyclers Shooed 3 | . 1 2 Parts Field Recycled . | . . . Retrieved Matter . | . . . Parts Self-Destructed . | . . . Prevented . | . . . Kills | -11 -10 -10 ------- Run | Yrd Mat Min Combat Hostiles Destroyed 20 | . 12 8 Melee 1 | . . 1 Guns 17 | . 12 5 AOE 2 | . . 2 Classes Destroyed 7 | 1 5 1 Builder 1 | . . 1 Hauler 1 | . 1 . Recycler 1 | 1 . . Operator 1 | . 1 . Watcher 1 | . 1 . Swarmer 3 | . 3 . Grunt 17 | . 9 8 Best Kill Streak 3 | 1 2 3 Combat Bots Only 2 | . 2 2 Max Kills in Single Turn 1 | 1 1 1 Gunslinging . | . . . Exploded 1 | . . 1 Melee 1 | . . 1 Uniques/NPCs Destroyed . | . . . Combat | -11 -10 -10 -------- Run | Yrd Mat Min Hostile Shots Fired 131 | . 66 65 Missed 28 | . 16 12 Damage Taken 1323 | . 608 715 Core 253 | . 90 163 Absorbed by Shields . | . . . Core Remaining (%) 100 | 100 . . Volleys Fired 106 | 7 57 42 Largest 2 | 2 2 2 Hottest 105 | 40 40 105 Shots Fired 206 | 14 114 78 Gun 197 | 14 114 69 Cannon . | . . . Launcher 9 | . . 9 Special . | . . . Kinetic 190 | 14 114 62 Thermal 4 | . . 4 Explosive 9 | . . 9 Electromagnetic 3 | . . 3 Robot Hit Streak 13 | 5 13 7 Robot Miss Streak 4 | 2 4 2 Penetration Max . | . . . Secondary Targets 1 | . . 1 Max Gunslinging Chain 1 | . . 1 Shots Hit Robots 128 | 9 74 45 Core Hits 55 | 2 30 23 Critical Kills . | . . . Critical Parts Destroyed 1 | . . 1 Critical Strikes 1 | . . 1 Destroy 1 | . . 1 Melee Attacks . | . . . Impact . | . . . Slashing . | . . . Piercing . | . . . Sneak Attacks . | . . . Combat Hostiles . | . . . Follow-up Attacks . | . . . Damage Inflicted 1981 | 104 930 947 Guns 1548 | 104 928 516 Cannons . | . . . Explosions 423 | . . 423 Melee . | . . . Ramming 10 | . 2 8 Kinetic 1492 | 104 928 460 Thermal 44 | . . 44 Explosive 423 | . . 423 Electromagnetic 12 | . . 12 Impact . | . . . Slashing . | . . . Piercing . | . . . Highest Corruption . | . . . Average Corruption . | . . . Corruption Purged . | . . . Corruption Blocked . | . . . Overload Shots . | . . . Overflow Damage 10 | . . 10 Projectiles . | . . . Explosions 10 | . . 10 Melee . | . . . Knockbacks . | . . . Impact . | . . . Kinetic . | . . . Secondary . | . . . Self-Inflicted Damage 71 | . . 71 Shots 2 | . . 2 Rammed 3 | . 1 2 Targets Rammed 3 | . 1 2 Kicked . | . . . Crushed . | . . . Highest Temperature 180 | . 21 180 Average Temperature 26 | . 7 31 Received Heat Transfer 708 | . 342 366 Siege Activations . | . . . Robots Corrupted . | . . . Combat Hostiles . | . . . Parts Fried . | . . . Impact Corruptions . | . . . Robots Melted . | . . . Combat Hostiles . | . . . Parts Melted . | . . . Heat Transferred 111 | . . 111 Parts Sabotaged . | . . . Parts Stolen . | . . . Parts Stripped . | . . . Power Chain Reactions . | . . . Alert | -11 -10 -10 ------- Run | Yrd Mat Min Peak Influence 201 | 5 161 201 Initial 30 | . 3 30 Average 43 | 1 34 72 Maximum Alert Level 1 | . . 1 Low Security (%) 99 | 100 100 99 Level 1 . | . . . Level 2 . | . . . Level 3 . | . . . Level 4 . | . . . Level 5 . | . . . High Security . | . . . Max Security . | . . . Squads Dispatched 2 | . 2 . Investigation 1 | . 1 . Extermination . | . . . Reinforcement 1 | . 1 . Assault . | . . . Garrison . | . . . Intercept . | . . . Searches Triggered . | . . . Construction Impeded . | . . . Haulers Reinforced . | . . . Active Scanning Responses . | . . . Cargo Convoy Interrupts . | . . . Stealth | -11 -10 -10 --------- Run | Yrd Mat Min Distress Signals 1 | . 1 . Communications Jammed . | . . . Distress Signals . | . . . Times Spotted 37 | . 24 13 Peak Tracking Total 3 | . 3 3 Tactical Retreats 7 | . 5 2 Traps | -11 -10 -10 ------- Run | Yrd Mat Min Traps Triggered 1 | . 1 . Indirectly . | . . . Trap Hack Attempts . | . . . Triggered . | . . . Disarmed 6 | . 6 . Reprogrammed . | . . . Reused . | . . . Traps Extracted . | . . . Installed . | . . . Triggered . | . . . Machines | -11 -10 -10 ---------- Run | Yrd Mat Min Machines Disabled . | . . . Max in Single Turn . | . . . Machines Repaired . | . . . Machines Dismantled . | . . . Machines Sabotaged . | . . . Overloaded Fab Kills . | . . . Hacking | -11 -10 -10 --------- Run | Yrd Mat Min Machines Accessed 3 | . 3 . Terminals 3 | . 3 . Fabricators . | . . . Repair Stations . | . . . Recycling Units . | . . . Scanalyzers . | . . . Garrison Access . | . . . Total Hacks 6 | . 6 . Successful 4 | . 4 . Failed 2 | . 2 . Catastrophic . | . . . Database Lockouts . | . . . Manual 6 | . 6 . Terminals 6 | . 6 . Fabricators . | . . . Repair Stations . | . . . Recycling Units . | . . . Scanalyzers . | . . . Garrison Access . | . . . Terminal Hacks 4 | . 4 . Locate Traps 2 | . 2 . Disarm Traps 1 | . 1 . Registered Components 1 | . 1 . Fabricator Hacks . | . . . Repair Station Hacks . | . . . Recycling Unit Hacks . | . . . Scanalyzer . | . . . Garrison Access Hacks . | . . . Unauthorized Hacks . | . . . Terminals . | . . . Fabricators . | . . . Repair Stations . | . . . Recycling Units . | . . . Scanalyzers . | . . . Garrison Access . | . . . Data Cores Recovered . | . . . Used . | . . . Hacking Detections 2 | . 2 . Full Trace Events . | . . . Feedback Events . | . . . Feedback Blocked . | . . . Robot Schematics Acquired . | . . . Robots Built . | . . . Authchips . | . . . Time . | . . . Total Robot Build Rating . | . . . Part Schematics Acquired . | . . . Parts Built . | . . . Authchips . | . . . Time . | . . . Total Part Build Rating . | . . . Parts Repaired . | . . . Time . | . . . Parts Recycled . | . . . Recycled Matter . | . . . Retrieved Matter . | . . . Retrieved Components . | . . . Parts Scanalyzed . | . . . Part Schematics Acquired . | . . . Parts Damaged . | . . . Bothacking | -11 -10 -10 ------------ Run | Yrd Mat Min Used RIF Installer . | . . . Robots Hacked . | . . . Non-combat . | . . . Combat . | . . . Robot Hacks Applied . | . . . Relay Couplers Released . | . . . Fabnet Peak Effective % . | . . . Robots Rewired . | . . . Allies Hacked . | . . . Hacks Repelled . | . . . Allies | -11 -10 -10 -------- Run | Yrd Mat Min Total Allies . | . . . Largest Group . | . . . Highest-Rated Group . | . . . Highest-Rated Ally . | . . . Total Orders . | . . . Ally Attacks . | . . . Total Damage . | . . . Kills . | . . . Allies Corrupted . | . . . Allies Melted . | . . . Intel | -11 -10 -10 ------- Run | Yrd Mat Min Robot Analysis Total . | . . . Derelict Logs Recovered 1 | . . 1 Drone Launches . | . . . Drone Recoveries . | . . . Exploration | -11 -10 -10 ------------- Run | Yrd Mat Min Turns Passed 2462 | 141 1579 742 Spaces Moved 1190 | 70 752 368 Core 5 | 5 . . Treads 1185 | 65 752 368 Legs . | . . . Wheels . | . . . Hover . | . . . Flight . | . . . Fastest Speed 50 | 50 160 160 Average Speed 166 | 152 170 162 Slowest Speed 320 | 160 320 240 Overloaded Moves . | . . . Propulsion Burnouts . | . . . Robots Hopped . | . . . Cave-ins Triggered . | . . . Exploration Rate (%) 48 | 6 96 43 Regions Visited 2 Branch Regions 1 Pre-discovered Areas . | . . . Known Exits Taken . | . . . Unknown Exits Taken 2 | 1 1 . Scrap Searched 1 | . . 1 Spaces Dug . | . . . Terrain Destroyed 44 | . . 44 Melee . | . . . Projectile . | . . . AOE 44 | . . 44 Terrain Rammed . | . . . Walls Destroyed . | . . . Machines Disabled . | . . . Actions | -11 -10 -10 --------- Run | Yrd Mat Min Total 1470 | 88 943 439 Wait 112 | . 98 14 Move 1188 | 69 751 368 Hop . | . . . Pick Up 24 | 6 16 2 Fast Attach 7 | 6 1 . Attach 7 | . 1 6 Detach . | . . . Swap 11 | . 6 5 Drop 12 | . 12 . Fire 106 | 7 57 42 Melee . | . . . Ram . | . . . Kick . | . . . Crush 3 | . 1 2 Escape Stasis . | . . . Rewire . | . . . Trap . | . . . Miscellaneous . | . . . Route ------- -11/Scrapyard -10/Materials (discovered 4 exits: [*Mat x3] / [*Min]) -10/Mines (discovered 1 exit: [*Mat]) History --------- Turn | Location | Event 8 | -11/Scrapyard | Discovered new exit (range 13) 142 | -11/Scrapyard | Entered Materials 305 | -10/Materials | Build established: Mutant 560 | -10/Materials | Discovered new exit (range 16) 938 | -10/Materials | Discovered new exit (range 16) 999 | -10/Materials | Discovered new exit (range 15) 1338 | -10/Materials | Discovered new exit (range 7) 1721 | -10/Materials | Entered Mines 2081 | -10/Mines | Core integrity fell below 50% 2146 | -10/Mines | Lost 4 parts (1p1u2w) 2157 | -10/Mines | Core integrity fell below 20% 2239 | -10/Mines | Discovered new exit (range 14) 2422 | -10/Mines | Learned Materials terminal intel 2463 | -10/Mines | Destroyed by S-10 Pest with Light Assault Rifle Last Messages --------------- 02117_ U-05 Engineer lays Concrete. 02118_ Slammed into G-47 Trooper. 02118_ G-47 Trooper destroyed. [Achievement: Fist Fight] 02119_ Acquired 37 matter. 02121_ Acquired Particle Gun. 02123_ Acquired 18 matter. 02144_ Acquired EM Pulse Gun. 02162_ Critical hit (Burn: +37). 02163_ G-47 Trooper destroyed. 02167_ Acquired 42 matter. 02235_ T-07 Excavator is excavating. 02239_ EXIT=FOUND 02302_ U-05 Engineer lays Concrete. 02394_ K-01 Serf cleans the Plasma Injector. 02422_ Acquired derelict log, extracted data. Data stored: Materials terminal intel. 02463_ Lgt. Treads destroyed. 02463_ Destroyed Lgt. Treads. [Achievement: Achiever] Map ----- +----------------------------------------------------+ | ????????????????????????# ## | | ?????????????????????#### ## ####! ##! | | ????????????????????## ### #### #####* ## | | ????????????????????# #### #?## ####?#!=## | | ???????????????????## #### ### ###???# ## | | ???????????????????# # ##?????# ## | | ???????????????????# ##?????# ## | | ??????????????????## ###### """ #?????# | | ???????????????#### #### """ #?????# | | ??????????????## """ #?????#### | | ?????????????## ##????????# | | ?????????????# #### ##?????????# | | ?????? #### #??## ####??????????# | | ??????? #???# #???##### #??#####?###??## | | ??????? #????# #???????# ## ## #???## | | ??????? #?????# #???????# # ????# | | ??????? ???#### ##??????# ######### | | ???????? ???## ##?????# | | ????????? ?#### ##????## | | ????????????# ##????## ## ######### | | ???????????# ##?????????# # #??? | | ??????????# """ ## ##????????###### #??? | | ?????????# """ #?## #?????????????#####??? | | ???????? """ ?## #????????????????????? | | ?????????#???? ?# #????????????????????? | | ?????????????#### #?# @ #????????????????????? | | ????????????????###??# "???????????????? | | ?????????????????????## s"""?????????????? | | ??????????????????????# # # s ???????????? | | ??????????????????????## #####?? s ?????????? | | ???????????????????????####???????? ??????????? | | ?????????????????????????????????????##??????????? | | ?????????????????????????????????????????????????? | | | | | | | | | | | | | | | | | | | | | | | | | | | | | | | | | | | +----------------------------------------------------+ Best States ------------- Heat Dissipation 25 Energy Generation 12 Energy Capacity 265 Matter Stores 330 Matter Capacity 400 Sight Range 16 Robot Scan Range 14 Terrain Scan Density 10 ECM Strength 1 Armor Coverage 150 Evasion (%) 40 Recoil Reduction 2 Item Schematics ----------------- None Robot Schematics ------------------ None Fabricated ------------ Nothing Alien Tech Used ----------------- None Achievements -------------- Achiever Fist Fight Challenges ------------ None Game ------ Seed ThiefAblativeLink Manual? 0 Play Time 00:20:05 Cumulative 25.1 hours Start 2024.10.26 @ 10:25:44 End 2024.10.26 @ 10:43:52 Sessions 1 Manual Loads 0 Difficulty Rogue Special Mode None Game No. 31 Rogue 24 Adventurer 0 Explorer 7 Win Type - Total 1 Types 1/0/0/0/0/0/0/0/0 Lore% 11 Gallery% 19 Achievement% 25 Wizard Run 0 Options --------- Layout 0 ASCII 0 Keyboard 0 Movement Mouse Keybinds 0 Fullscreen 1 Font 24/Terminus Map View 76x50 Zoom Use 0% Tactical HUD 1 Map Filters NONE Filters NONE Steam 1 RUN: 0505f0d0-9c45-4690-b086-047f353a8937